bitfinex/quotes_BTCUSD_20251117
["timestamp","ask_amount","ask_price","bid_price","bid_amount"]
[1763353773571,0.00024587,95652.0,95651.0,0.01635]
[1763353773972,0.00024587,95652.0,95651.0,0.03983]
[1763353774180,0.00024587,95652.0,95651.0,0.13983]
[1763353774389,0.00024587,95652.0,95651.0,0.153813]
[1763353775125,0.00024587,95652.0,95651.0,0.1]
[1763353775632,0.49092587,95652.0,95651.0,0.1]
[1763353775833,0.323,95651.0,95642.0,0.11108931]
[1763353776042,0.323,95651.0,95643.0,0.02348]
[1763353776442,0.323,95651.0,95647.0,0.1]
[1763353776645,0.323,95651.0,95599.0,0.01128]
[1763353776872,0.00024587,95652.0,95599.0,0.01128]
[1763353776873,0.02879,95632.0,95625.0,0.1]
[1763353777053,0.01235,95632.0,95625.0,0.0004419]
[1763353777212,0.01235,95639.0,95625.0,0.0004419]
[1763353777408,0.01235,95639.0,95629.0,0.1]
[1763353777721,0.323,95640.0,95630.0,0.01128]
[1763353777905,0.323,95640.0,95637.0,0.09980931]
[1763353779210,0.323,95649.0,95639.0,0.01635]
[1763353779331,0.00292,95647.0,95637.0,0.09980931]
[1763353779532,0.00292,95647.0,95638.0,0.01232893]
[1763353781007,0.00292,95647.0,95638.0,0.11232893]
[1763353782496,0.323,95649.0,95638.0,0.11232893]
[1763353785690,0.323,95647.0,95638.0,0.11232893]
[1763353785846,0.323,95647.0,95638.0,0.13629893]
[1763353786057,0.323,95647.0,95639.0,0.02361082]
[1763353787454,0.08384,95648.0,95646.0,0.01794]
[1763353787663,0.00024587,95652.0,95647.0,0.0154]
[1763353788408,0.00024587,95652.0,95648.0,0.02397]
[1763353789022,0.00024587,95652.0,95651.0,0.0154]
[1763353789814,0.00024587,95652.0,95651.0,0.03937]
[1763353790283,0.00024587,95652.0,95651.0,0.0154]
[1763353790571,0.01573587,95652.0,95641.0,0.01139]
[1763353790855,0.323,95650.0,95641.0,0.01348101]
[1763353791737,0.01192,95651.0,95641.0,0.01580101]
[1763353791919,0.323,95650.0,95641.0,0.01580101]
[1763353792305,0.323,95650.0,95641.0,0.00232]
[1763353792509,0.323,95650.0,95638.0,0.1]
[1763353793767,0.01192,95651.0,95638.0,0.1]
[1763353793926,0.27606683,95650.0,95638.0,0.1]
[1763353794844,0.34740182,95650.0,95638.0,0.1]
[1763353795045,0.34740182,95650.0,95639.0,0.02111993]
[1763353795587,0.49068,95649.0,95639.0,0.02111993]
[1763353795814,0.40684,95649.0,95639.0,0.02111993]
[1763353795973,0.40684,95649.0,95637.0,0.09980931]
[1763353796503,0.40684,95649.0,95619.0,0.01139]
[1763353796504,0.02741,95638.0,95619.0,0.01139]
[1763353796788,0.02741,95638.0,95636.0,0.09980931]
[1763353797516,0.03974,95637.0,95619.0,0.01139]
[1763353797722,0.323,95634.0,95631.0,0.09980931]
[1763353797940,0.02741,95626.0,95619.0,0.01139]
[1763353798388,0.02741,95626.0,95625.0,0.1004419]
[1763353798539,0.02741,95626.0,95625.0,0.11162509]
[1763353800354,0.01192,95638.0,95625.0,0.11162509]
[1763353800645,0.01961065,95637.0,95630.0,0.09980931]
[1763353800872,0.323,95639.0,95631.0,0.01139]
[1763353801086,0.323,95639.0,95631.0,0.02606944]
[1763353801304,0.01192,95638.0,95632.0,0.09980931]
[1763353801495,0.01192,95638.0,95635.0,0.1]
[1763353802039,0.323,95644.0,95635.0,0.1]
[1763353802692,0.01192,95651.0,95643.0,0.02679]
[1763353802973,0.323,95649.0,95636.0,0.02111993]
[1763353803172,0.02741,95637.0,95625.0,0.0004419]
[1763353803419,0.323,95634.0,95633.0,0.1]
[1763353803632,0.323,95634.0,95629.0,0.1]
[1763353803762,0.02425,95633.0,95629.0,0.1]
[1763353803961,0.02425,95633.0,95625.0,0.0004419]
[1763353803962,0.01549,95630.0,95625.0,0.0004419]
[1763353804212,0.01549,95626.0,95625.0,0.0004419]
[1763353805044,0.323,95634.0,95625.0,0.0004419]
[1763353805428,0.08384,95633.0,95625.0,0.0004419]
[1763353805675,0.08384,95632.0,95627.0,0.09980931]
[1763353805820,0.08384,95632.0,95628.0,0.01002512]
[1763353806833,0.08384,95632.0,95625.0,0.0004419]
[1763353807177,0.323,95634.0,95628.0,0.09980931]
[1763353807519,0.01549,95629.0,95625.0,0.0004419]
[1763353807728,0.01549,95626.0,95625.0,0.0004419]
[1763353807926,0.03974,95626.0,95625.0,0.0004419]
[1763353810905,0.0593334,95626.0,95625.0,0.0004419]
[1763353812116,0.05931755,95626.0,95625.0,0.0004419]
[1763353812318,0.06371,95626.0,95625.0,0.0004419]
[1763353815530,0.47055,95626.0,95625.0,0.0004419]
[1763353815741,0.55439,95626.0,95625.0,0.0004419]
[1763353815945,0.47055,95626.0,95625.0,0.0004419]
[1763353817539,0.38671,95626.0,95625.0,0.0004419]
[1763353818362,0.36246,95626.0,95625.0,0.0004419]
[1763353819578,0.34697,95626.0,95625.0,0.0004419]
[1763353822148,0.34697,95626.0,95625.0,0.0166619]
[1763353822314,0.323,95626.0,95625.0,0.0409719]
[1763353822491,0.323,95626.0,95625.0,0.0166619]
[1763353822705,0.323,95626.0,95625.0,0.1166619]
[1763353823162,0.323,95626.0,95625.0,0.1004419]
[1763353823550,0.323,95626.0,95625.0,0.0004419]
[1763353825541,0.49068,95626.0,95625.0,0.0004419]
[1763353825899,0.5058,95626.0,95625.0,0.0004419]
[1763353827049,0.49068,95626.0,95625.0,0.0004419]
[1763353828201,0.5058,95626.0,95625.0,0.0004419]
[1763353828409,0.49068,95626.0,95625.0,0.0004419]
[1763353828958,0.52221837,95626.0,95625.0,0.0004419]
[1763353829625,0.37825837,95626.0,95625.0,0.0004419]
[1763353830287,0.39787138,95626.0,95625.0,0.0004419]
[1763353832956,0.4303303,95626.0,95625.0,0.0004419]
[1763353833922,0.3914903,95626.0,95625.0,0.0004419]
[1763353834568,0.37187729,95626.0,95625.0,0.0004419]
[1763353834778,0.04887729,95626.0,95625.0,0.0004419]
[1763353835418,0.45575729,95626.0,95625.0,0.0004419]
[1763353835592,0.53863729,95626.0,95625.0,0.0004419]
[1763353837399,0.37087729,95626.0,95625.0,0.0004419]
[1763353839657,0.35445892,95626.0,95625.0,0.0004419]
[1763353840007,0.35404324,95626.0,95625.0,0.0004419]
[1763353842855,0.37046262,95626.0,95625.0,0.0004419]
[1763353843627,0.37046262,95626.0,95625.0,0.0166619]
[1763353844006,0.37046262,95626.0,95625.0,0.1004419]
[1763353844214,0.37046262,95626.0,95625.0,0.01166509]
[1763353844655,0.37046262,95626.0,95625.0,0.12788509]
[1763353844889,0.33941938,95626.0,95625.0,0.11166509]
[1763353845491,0.50717938,95626.0,95625.0,0.11166509]
[1763353845870,0.50717938,95626.0,95625.0,0.1004419]
[1763353847688,0.42329938,95626.0,95625.0,0.1004419]
[1763353847916,0.33941938,95626.0,95625.0,0.1004419]
[1763353851838,0.33941938,95626.0,95625.0,0.0004419]
[1763353853419,0.36439938,95626.0,95625.0,0.0004419]
[1763353853627,0.34798,95626.0,95625.0,0.0004419]
[1763353855372,0.43182,95626.0,95625.0,0.0004419]
[1763353855572,0.51566,95626.0,95625.0,0.0004419]
[1763353856795,0.53207853,95626.0,95625.0,0.0004419]
[1763353858131,0.36439853,95626.0,95625.0,0.0004419]
[1763353860686,0.36439853,95626.0,95625.0,0.0163219]
[1763353861047,0.36439853,95626.0,95625.0,0.00575109]
[1763353861420,0.36439853,95626.0,95625.0,0.1004419]
[1763353861692,0.36439853,95626.0,95625.0,0.0004419]
[1763353862980,0.36439853,95626.0,95625.0,0.1004419]
[1763353863307,0.01641853,95626.0,95625.0,0.1004419]
[1763353863668,0.01641853,95626.0,95625.0,0.1413019]
[1763353863870,0.01641853,95626.0,95625.0,0.12575109]
[1763353865475,0.42325853,95626.0,95625.0,0.12575109]
[1763353866231,0.33941853,95626.0,95625.0,0.12575109]
[1763353866418,0.42325853,95626.0,95625.0,0.12575109]
[1763353867408,0.08384,95626.0,95625.0,0.12575109]
[1763353867870,0.08384,95626.0,95625.0,0.1004419]
[1763353868269,0.323,95634.0,95625.0,0.1004419]
[1763353868566,0.323,95634.0,95633.0,0.09980931]
[1763353869034,0.3389,95634.0,95633.0,0.09980931]
[1763353871404,0.03852,95634.0,95633.0,0.09980931]
[1763353871804,0.0159,95634.0,95633.0,0.09980931]
[1763353872225,0.0159,95634.0,95633.0,0.10979024]
[1763353873039,0.03852,95634.0,95633.0,0.10979024]
[1763353873253,0.03852,95634.0,95625.0,0.0004419]
[1763353873455,0.36152,95634.0,95627.0,0.1]
[1763353873680,0.04224541,95633.0,95625.0,0.0004419]
[1763353873877,0.09980931,95627.0,95625.0,0.0004419]
[1763353874097,0.34262907,95626.0,95625.0,0.0004419]
[1763353874470,0.36760907,95626.0,95625.0,0.0004419]
[1763353875578,0.45144907,95626.0,95625.0,0.0004419]
[1763353876048,0.36760907,95626.0,95625.0,0.0004419]
[1763353877326,0.41435091,95626.0,95625.0,0.0004419]
[1763353877525,0.39020027,95626.0,95625.0,0.0004419]
[1763353877871,0.43361901,95626.0,95625.0,0.0004419]
[1763353878074,0.04341874,95619.0,95606.0,0.02392]
[1763353878270,0.36641874,95615.0,95607.0,0.02392]
[1763353878556,0.09980931,95608.0,95607.0,0.02392]
[1763353878692,0.44243838,95608.0,95607.0,0.02392]
[1763353878877,0.46502958,95608.0,95607.0,0.03977]
[1763353879514,0.48894958,95608.0,95607.0,0.03977]
[1763353880198,0.48994958,95608.0,95607.0,0.03977]
[1763353880646,0.48894958,95608.0,95607.0,0.03977]
[1763353881058,0.6379808,95608.0,95607.0,0.03977]
[1763353881259,0.62155374,95608.0,95607.0,0.03977]
[1763353881415,0.59163022,95608.0,95607.0,0.03977]
[1763353881829,0.53336832,95608.0,95607.0,0.03977]
[1763353884248,0.54979519,95608.0,95607.0,0.03977]
[1763353885238,0.52720399,95608.0,95607.0,0.03977]
[1763353885478,0.69496399,95608.0,95607.0,0.03977]
[1763353886571,0.61108399,95608.0,95607.0,0.03977]
[1763353886891,0.69496399,95608.0,95607.0,0.03977]
[1763353889044,0.52720399,95608.0,95607.0,0.03977]
[1763353894895,0.04341874,95599.0,95560.0,0.0004]
[1763353895077,0.09980931,95590.0,95560.0,0.0004]
[1763353895269,0.34262907,95589.0,95560.0,0.0004]
[1763353895589,0.40688,95587.0,95560.0,0.0004]
[1763353895890,0.42650907,95587.0,95560.0,0.0004]
[1763353897808,0.42750907,95587.0,95560.0,0.0004]
[1763353898163,0.43929907,95587.0,95560.0,0.0004]
[1763353898758,0.03241907,95587.0,95560.0,0.0004]
[1763353900248,0.03231861,95587.0,95560.0,0.0004]
[1763353902474,0.0794742,95587.0,95560.0,0.0004]
[1763353902660,0.03231861,95587.0,95560.0,0.0004]
[1763353903268,0.04210659,95587.0,95560.0,0.0004]
[1763353903656,0.08552533,95587.0,95560.0,0.0004]
[1763353904287,0.04210659,95587.0,95560.0,0.0004]
[1763353905360,0.12602659,95587.0,95560.0,0.0004]
[1763353905562,0.53294659,95587.0,95560.0,0.0004]
[1763353905771,0.55547755,95587.0,95560.0,0.0004]
[1763353907693,0.5837237,95587.0,95560.0,0.0004]
[1763353908312,0.55547755,95587.0,95560.0,0.0004]
[1763353909284,0.62639424,95587.0,95560.0,0.0004]
[1763353909479,0.6264181,95587.0,95560.0,0.0004]
[1763353909889,0.4585781,95587.0,95560.0,0.0004]
[1763353910289,0.50199684,95587.0,95560.0,0.0004]
[1763353910953,0.50199684,95587.0,95586.0,0.00971985]
[1763353911842,0.43108015,95587.0,95586.0,0.00971985]
[1763353913706,0.43108015,95587.0,95560.0,0.0004]
[1763353913707,0.36641874,95586.0,95560.0,0.0004]
[1763353913876,0.09991162,95580.0,95579.0,0.01192262]
[1763353914094,0.07275919,95580.0,95579.0,0.01192262]
[1763353914289,0.43341913,95580.0,95579.0,0.01192262]
[1763353914576,0.45595009,95580.0,95579.0,0.01192262]
[1763353915196,0.41253135,95580.0,95579.0,0.01192262]
[1763353915381,0.37487141,95580.0,95579.0,0.01192262]
[1763353915581,0.54271141,95580.0,95579.0,0.01192262]
[1763353915758,0.55472163,95580.0,95579.0,0.01192262]
[1763353916935,0.55572163,95580.0,95579.0,0.01192262]
[1763353917169,0.59338157,95580.0,95579.0,0.01192262]
[1763353917642,0.55572163,95580.0,95579.0,0.01192262]
[1763353919430,0.38788163,95580.0,95579.0,0.01192262]
[1763353920201,0.38688163,95580.0,95579.0,0.01192262]
[1763353921561,0.38788163,95580.0,95579.0,0.01192262]
[1763353922046,0.38688163,95580.0,95579.0,0.01192262]
[1763353922247,0.38788163,95580.0,95579.0,0.01192262]
[1763353924719,0.4144816,95580.0,95579.0,0.01192262]
[1763353924863,0.4427373,95580.0,95579.0,0.01192262]
[1763353925068,0.38688163,95580.0,95579.0,0.01192262]
[1763353925501,0.54490979,95580.0,95579.0,0.01192262]
[1763353925711,0.55472604,95580.0,95579.0,0.01192262]
[1763353926271,0.54590979,95580.0,95579.0,0.01192262]
[1763353927258,0.38788692,95580.0,95579.0,0.01192262]
[1763353927731,0.38688692,95580.0,95579.0,0.01192262]
[1763353928631,0.41515839,95580.0,95579.0,0.01192262]
[1763353928782,0.41615839,95580.0,95579.0,0.01192262]
[1763353929503,0.38788692,95580.0,95579.0,0.01192262]
[1763353931321,0.40431907,95580.0,95579.0,0.01192262]
[1763353932139,0.43261028,95580.0,95579.0,0.01192262]
[1763353932494,0.40431907,95580.0,95579.0,0.01192262]
[1763353933791,0.07150194,95580.0,95579.0,0.01192262]
[1763353933986,0.03704836,95580.0,95579.0,0.01192262]
[1763353934519,0.03604836,95580.0,95579.0,0.01192262]
[1763353934836,0.03704836,95580.0,95579.0,0.01192262]
[1763353935236,0.03604836,95580.0,95579.0,0.01192262]
[1763353935463,0.44296836,95580.0,95579.0,0.01192262]
[1763353935779,0.35904836,95580.0,95579.0,0.01192262]
[1763353938702,0.38167456,95580.0,95579.0,0.01192262]
[1763353938857,0.3816991,95580.0,95579.0,0.01192262]
[1763353940731,0.38052642,95580.0,95579.0,0.01192262]
[1763353941627,0.34264075,95580.0,95579.0,0.01192262]
[1763353943338,0.35456337,95580.0,95579.0,0.01192262]
[1763353944634,0.37099468,95580.0,95579.0,0.01192262]
[1763353945535,0.53883468,95580.0,95579.0,0.01192262]
[1763353946143,0.45491468,95580.0,95579.0,0.01192262]
[1763353946322,0.53883468,95580.0,95579.0,0.01192262]
[1763353948156,0.56146563,95580.0,95579.0,0.01192262]
[1763353948802,0.47754563,95580.0,95579.0,0.01192262]
[1763353949023,0.39362563,95580.0,95579.0,0.01192262]
[1763353951713,0.37099468,95580.0,95579.0,0.01192262]
[1763353953055,0.39362945,95580.0,95579.0,0.01192262]
[1763353955593,0.60366032,95580.0,95579.0,0.01192262]
[1763353955754,0.61348353,95580.0,95579.0,0.01192262]
[1763353956561,0.64176273,95580.0,95579.0,0.01192262]
[1763353956781,0.64276273,95580.0,95579.0,0.01192262]
[1763353956946,0.49006227,95580.0,95579.0,0.01192262]
[1763353957150,0.55422079,95580.0,95579.0,0.01192262]
[1763353957365,0.52363663,95580.0,95579.0,0.01192262]
[1763353957592,0.50720532,95580.0,95579.0,0.01192262]
[1763353957806,0.50720277,95580.0,95579.0,0.01192262]
[1763353958033,0.56376044,95580.0,95579.0,0.01192262]
[1763353958566,0.50720277,95580.0,95579.0,0.01192262]
[1763353958768,0.50720277,95580.0,95560.0,0.0004]
[1763353958769,0.04341874,95569.0,95560.0,0.0004]
[1763353958970,0.49449669,95561.0,95560.0,0.0004]
[1763353959235,0.37509618,95561.0,95560.0,0.0004]
[1763353959364,0.38009668,95561.0,95560.0,0.0004]
[1763353961395,0.35746191,95561.0,95560.0,0.0004]
[1763353961609,0.01482371,95561.0,95560.0,0.0004]
[1763353963151,0.03444133,95561.0,95560.0,0.0004]
[1763353964653,0.04014552,95561.0,95560.0,0.0004]
[1763353965185,0.03444133,95561.0,95560.0,0.0004]
[1763353965582,0.20228133,95561.0,95560.0,0.0004]
[1763353965783,0.20328133,95561.0,95560.0,0.0004]
[1763353966405,0.14096191,95561.0,95560.0,0.0004]
[1763353966604,0.11936133,95561.0,95560.0,0.0004]
[1763353967580,0.03544133,95561.0,95560.0,0.0004]
[1763353970354,0.03542465,95561.0,95560.0,0.0004]
[1763353971145,0.05186033,95561.0,95560.0,0.0004]
[1763353971505,0.03542465,95561.0,95560.0,0.0004]
[1763353973278,0.07884339,95561.0,95560.0,0.0004]
[1763353973480,0.47941464,95561.0,95560.0,0.0004]
[1763353973689,0.42444397,95561.0,95560.0,0.0004]
[1763353974306,0.38102523,95561.0,95560.0,0.0004]
[1763353974528,0.39746154,95561.0,95560.0,0.0004]
[1763353975516,0.56530154,95561.0,95560.0,0.0004]
[1763353976504,0.39746154,95561.0,95560.0,0.0004]
[1763353976727,0.39745704,95561.0,95560.0,0.0004]
[1763353976934,0.43720319,95561.0,95560.0,0.0004]
[1763353977564,0.43620319,95561.0,95560.0,0.0004]
[1763353978172,0.37641873,95560.0,95550.0,0.0004]
[1763353978379,0.0282179,95556.0,95550.0,0.0004]
[1763353978530,0.42280931,95554.0,95550.0,0.0004]
[1763353978740,0.36519538,95553.0,95550.0,0.0004]
[1763353978940,0.04219538,95552.0,95550.0,0.0004]
[1763353979143,0.0195948,95551.0,95550.0,0.0004]
[1763353984844,0.03603128,95551.0,95550.0,0.0004]
[1763353985498,0.52687128,95551.0,95550.0,0.0004]
[1763353985702,0.5494879,95551.0,95550.0,0.0004]
[1763353987555,0.3816479,95551.0,95550.0,0.0004]
[1763353987942,0.4655679,95551.0,95550.0,0.0004]
[1763353988109,0.46976576,95551.0,95550.0,0.0004]
[1763353988922,0.38584576,95551.0,95550.0,0.0004]
[1763353994480,0.39567068,95551.0,95550.0,0.0004]
[1763353994682,0.37641873,95550.0,95540.0,0.0004]
[1763353994823,0.323,95543.0,95540.0,0.0005327]
[1763353995033,0.0856107,95542.0,95530.0,0.0004]
[1763353995231,0.02828959,95535.0,95530.0,0.0004]
[1763353995483,0.04341874,95529.0,95510.0,0.0004]
[1763353995832,0.02827131,95523.0,95510.0,0.0004]
[1763353996003,0.09980931,95521.0,95510.0,0.0004]
[1763353996230,0.36641874,95520.0,95510.0,0.0004]
[1763353996368,0.04341874,95514.0,95510.0,0.0004]
[1763353996564,0.04341874,95514.0,95480.0,0.0004]
[1763353996565,0.323,95500.0,95480.0,0.0004]
[1763353996764,0.04221142,95499.0,95480.0,0.0004]
[1763353996986,0.02939353,95498.0,95480.0,0.0004]
[1763353997189,0.0195948,95497.0,95480.0,0.0004]
[1763353997569,0.05316916,95497.0,95480.0,0.0004]
[1763353997776,0.0195948,95496.0,95491.0,0.00244242]
[1763353997981,0.0195948,95495.0,95491.0,0.00244242]
[1763353998192,0.00420043,95498.0,95491.0,0.00244242]
[1763353998193,0.0195948,95494.0,95491.0,0.00244242]
[1763353998394,0.0195948,95493.0,95491.0,0.00244242]
[1763353998659,0.0195948,95492.0,95491.0,0.00244242]
[1763353999802,0.01953832,95492.0,95491.0,0.00244242]
[1763354000217,0.00420043,95498.0,95491.0,0.00244242]
[1763354000403,0.01953878,95497.0,95491.0,0.00244242]
[1763354000610,0.01953878,95496.0,95491.0,0.00244242]
[1763354000819,0.00420043,95498.0,95491.0,0.00244242]
[1763354001920,0.0164436,95497.0,95491.0,0.00244242]
[1763354002763,0.0164436,95497.0,95492.0,0.09980931]
[1763354002975,0.0164436,95497.0,95493.0,0.01026517]
[1763354003556,0.0164436,95497.0,95491.0,0.00244242]
[1763354003557,0.0164436,95497.0,95494.0,0.09980931]
[1763354005524,0.49092,95496.0,95494.0,0.09980931]
[1763354006121,0.35449548,95495.0,95494.0,0.09980931]
[1763354007020,0.35449548,95495.0,95491.0,0.00244242]
[1763354007224,0.03149548,95495.0,95492.0,0.09980931]
[1763354007523,0.0164436,95497.0,95491.0,0.00244242]
[1763354007674,0.03149769,95496.0,95491.0,0.00244242]
[1763354009469,0.03149769,95496.0,95492.0,0.09980931]
[1763354013092,0.03149769,95496.0,95491.0,0.00244242]
[1763354013093,0.09254193,95495.0,95491.0,0.00244242]
[1763354013477,0.01953261,95494.0,95491.0,0.00244242]
[1763354013827,0.00419969,95494.0,95491.0,0.00244242]
[1763354015509,0.08396,95493.0,95491.0,0.00244242]
[1763354015743,0.40696,95492.0,95491.0,0.00244242]
[1763354016113,0.41115969,95492.0,95491.0,0.00244242]
[1763354016514,0.42760344,95492.0,95491.0,0.00244242]
[1763354019850,0.02064344,95492.0,95491.0,0.00244242]
[1763354021563,0.04021929,95492.0,95491.0,0.00244242]
[1763354024536,0.04649759,95492.0,95491.0,0.00244242]
[1763354024814,0.08360323,95492.0,95491.0,0.00244242]
[1763354025016,0.08460323,95492.0,95491.0,0.00244242]
[1763354025190,0.4301669,95492.0,95491.0,0.00244242]
[1763354025517,0.5980869,95492.0,95491.0,0.00244242]
[1763354026267,0.62632768,95492.0,95491.0,0.00244242]
[1763354027017,0.58164315,95492.0,95491.0,0.00244242]
[1763354029174,0.60987,95492.0,95491.0,0.00244242]
[1763354029784,0.52591,95492.0,95491.0,0.00244242]
[1763354031237,0.49768315,95492.0,95491.0,0.00244242]
[1763354031444,0.47008366,95492.0,95491.0,0.00244242]
[1763354031619,0.49831051,95492.0,95491.0,0.00244242]
[1763354031801,0.5135024,95492.0,95491.0,0.00244242]
[1763354032001,0.04341874,95489.0,95480.0,0.0004]
[1763354032205,0.46622805,95481.0,95480.0,0.00053275]
[1763354032475,0.57996259,95481.0,95480.0,0.00053275]
[1763354033755,0.58416419,95481.0,95480.0,0.00053275]
[1763354034224,0.55595311,95481.0,95480.0,0.00053275]
[1763354034600,0.55695311,95481.0,95480.0,0.00053275]
[1763354035152,0.58513496,95481.0,95480.0,0.00053275]
[1763354035600,0.75313496,95481.0,95480.0,0.00053275]
[1763354036834,0.72495311,95481.0,95480.0,0.00053275]
[1763354037199,0.69137875,95481.0,95480.0,0.00053275]
[1763354038365,0.47996001,95481.0,95480.0,0.00053275]
[1763354038793,0.15696001,95481.0,95480.0,0.00053275]
[1763354039064,0.02477745,95481.0,95480.0,0.00053275]
[1763354039685,0.02377745,95481.0,95480.0,0.00053275]
[1763354040687,0.04022587,95481.0,95480.0,0.00053275]
[1763354040869,0.02377745,95481.0,95480.0,0.00053275]
[1763354043889,0.04022534,95481.0,95480.0,0.00053275]
[1763354045498,0.53122534,95481.0,95480.0,0.00053275]
[1763354047755,0.04022534,95481.0,95480.0,0.00053275]
[1763354048295,0.04024558,95481.0,95480.0,0.00053275]
[1763354048604,0.02379769,95481.0,95480.0,0.00053275]
[1763354050140,0.0042016,95481.0,95480.0,0.00053275]
[1763354051146,0.0042016,95481.0,95450.0,0.16312018]
[1763354051147,0.00999999,95470.0,95450.0,0.0004]
[1763354051333,0.323,95460.0,95450.0,0.0004]
[1763354051532,0.08016121,95459.0,95450.0,0.0004]
[1763354051737,0.05757964,95458.0,95450.0,0.0004]
[1763354051933,0.02939779,95457.0,95450.0,0.0004]
[1763354052140,0.01960189,95456.0,95450.0,0.0004]
[1763354052395,0.01960189,95455.0,95450.0,0.0004]
[1763354052569,0.01960189,95454.0,95450.0,0.0004]
[1763354052769,0.01960189,95453.0,95450.0,0.0004]
[1763354052986,0.01072329,95456.0,95450.0,0.0004]
[1763354052987,0.01960189,95452.0,95450.0,0.0004]
[1763354053191,0.04218346,95452.0,95450.0,0.0004]
[1763354054428,0.08646676,95452.0,95450.0,0.0004]
[1763354054643,0.05196879,95452.0,95450.0,0.0004]
[1763354055403,0.22096879,95452.0,95450.0,0.0004]
[1763354055625,0.24355036,95452.0,95450.0,0.0004]
[1763354056125,0.23376503,95452.0,95450.0,0.0004]
[1763354056321,0.23276503,95452.0,95450.0,0.0004]
[1763354056653,0.23376503,95452.0,95450.0,0.0004]
[1763354058863,0.10918377,95452.0,95450.0,0.0004]
[1763354059014,0.09637316,95452.0,95450.0,0.0004]
[1763354059213,0.0866022,95452.0,95450.0,0.0004]
[1763354061974,0.10305611,95452.0,95450.0,0.0004]
[1763354062189,0.14530823,95452.0,95450.0,0.0004]
[1763354062622,0.0866022,95452.0,95450.0,0.0004]
[1763354062763,0.09636399,95452.0,95450.0,0.0004]
[1763354062970,0.41936399,95452.0,95450.0,0.0004]
[1763354063175,0.44194556,95452.0,95450.0,0.0004]
[1763354065284,0.45830763,95452.0,95450.0,0.0004]
[1763354065479,0.62638763,95452.0,95450.0,0.0004]
[1763354066076,0.4891671,95452.0,95450.0,0.0004]
[1763354066282,0.5732071,95452.0,95450.0,0.0004]
[1763354067398,0.54962553,95452.0,95450.0,0.0004]
[1763354068024,0.57209546,95452.0,95450.0,0.0004]
[1763354068644,0.58286111,95452.0,95450.0,0.0004]
[1763354069913,0.09178111,95452.0,95450.0,0.0004]
[1763354070126,0.06931118,95452.0,95450.0,0.0004]
[1763354073435,0.43573508,95452.0,95450.0,0.0004]
[1763354073642,0.323,95423.0,95414.0,0.09980931]
[1763354074788,0.04341874,95451.0,95414.0,0.09994209]
[1763354074789,0.03152166,95440.0,95414.0,0.09994209]
[1763354074995,0.323,95423.0,95414.0,0.09994209]
[1763354075422,0.323,95421.0,95414.0,0.09994209]
[1763354075619,0.33945472,95421.0,95415.0,0.01023421]
[1763354077450,0.33945472,95421.0,95415.0,0.01123421]
[1763354081103,0.01962753,95420.0,95415.0,0.01123421]
[1763354081304,0.01962753,95419.0,95415.0,0.01123421]
[1763354081509,0.01962753,95418.0,95415.0,0.01123421]
[1763354081714,0.01962753,95417.0,95416.0,0.01135763]
[1763354083741,0.01962753,95417.0,95416.0,0.01235763]
[1763354085524,0.51070753,95417.0,95416.0,0.01235763]
[1763354087402,0.40704,95417.0,95416.0,0.01235763]
[1763354087601,0.323,95417.0,95416.0,0.01235763]
[1763354087808,0.3426347,95417.0,95416.0,0.01235763]
[1763354088125,0.34124603,95417.0,95416.0,0.01235763]
[1763354089473,0.32161133,95417.0,95416.0,0.01235763]
[1763354094900,0.32161133,95417.0,95416.0,0.001]
[1763354095109,0.34124568,95417.0,95416.0,0.001]
[1763354095522,0.50932568,95417.0,95416.0,0.001]
[1763354098706,0.42528568,95417.0,95416.0,0.001]
[1763354098873,0.34124568,95417.0,95416.0,0.001]
[1763354099077,0.34124026,95417.0,95416.0,0.001]
[1763354100480,0.323,95416.0,95414.0,0.00013278]
[1763354100680,0.01962893,95415.0,95414.0,0.00013278]
[1763354102100,0.01962494,95415.0,95414.0,0.00013278]
[1763354103069,0.323,95414.0,95364.0,0.09980931]
[1763354103406,0.0282294,95412.0,95405.0,0.005308]
[1763354103727,0.13742408,95409.0,95364.0,0.09980931]
[1763354103918,0.323,95399.0,95350.0,0.0004]
[1763354104141,0.0422326,95398.0,95350.0,0.0004]
[1763354104273,0.01962494,95397.0,95350.0,0.0004]
[1763354104476,0.02260766,95398.0,95350.0,0.0004]
[1763354104477,0.01962494,95396.0,95350.0,0.0004]
[1763354104718,0.01962494,95395.0,95350.0,0.0004]
[1763354104948,0.02681276,95398.0,95350.0,0.0004]
[1763354104949,0.01962494,95394.0,95350.0,0.0004]
[1763354105234,0.01962494,95393.0,95350.0,0.0004]
[1763354105440,0.323,95391.0,95350.0,0.0004]
[1763354105641,0.34262494,95391.0,95350.0,0.0004]
[1763354105786,0.34262494,95391.0,95390.0,0.00081278]
[1763354105999,0.34682992,95391.0,95390.0,0.00081278]
[1763354107061,0.42666494,95391.0,95390.0,0.00081278]
[1763354107362,0.08404,95391.0,95390.0,0.00081278]
[1763354107599,0.323,95399.0,95390.0,0.00081278]
[1763354107733,0.323,95399.0,95391.0,0.09980931]
[1763354107936,0.323,95399.0,95397.0,0.00022081]
[1763354108321,0.35453126,95406.0,95397.0,0.00022081]
[1763354108527,0.01954625,95405.0,95397.0,0.00022081]
[1763354108809,0.01954625,95404.0,95397.0,0.00022081]
[1763354108933,0.01954625,95403.0,95397.0,0.00022081]
[1763354109134,0.01645886,95404.0,95397.0,0.00022081]
[1763354109338,0.35453126,95406.0,95397.0,0.00022081]
[1763354109538,0.323,95406.0,95397.0,0.00022081]
[1763354110161,0.2779519,95407.0,95397.0,0.01026382]
[1763354110575,0.323,95406.0,95397.0,0.01026382]
[1763354110953,0.2779519,95407.0,95397.0,0.01026382]
[1763354111401,0.323,95406.0,95397.0,0.01026382]
[1763354111594,0.323,95406.0,95398.0,0.01100731]
[1763354111759,0.323,95406.0,95397.0,0.00022081]
[1763354112361,0.0164577,95404.0,95397.0,0.00022081]
[1763354113867,0.03152712,95403.0,95397.0,0.00022081]
[1763354115476,0.49108,95402.0,95397.0,0.00022081]
[1763354116455,0.323,95402.0,95397.0,0.00022081]
[1763354116661,0.08404,95401.0,95398.0,0.01000301]
[1763354116867,0.323,95402.0,95398.0,0.01000301]
[1763354117253,0.03152712,95403.0,95398.0,0.01000301]
[1763354117458,0.2779519,95440.0,95398.0,0.11000301]
[1763354117459,0.2779519,95420.0,95398.0,0.11000301]
[1763354117697,0.323,95419.0,95408.0,0.09980931]
[1763354118009,0.2779519,95420.0,95408.0,0.10979024]